Cogmind - Beta 13 @@@ ROGUE MODE // 2024.04.22 @ 12:13:53 Player: KIWA Result: Core destroyed Performance ------------- Evolutions (0) 0 Regions Visited (2) 400 Robots Destroyed (23) 115 Value Destroyed (415) 415 Prototype IDs (0) 0 Alien Tech Used (0) 0 Bonus (0) 0 TOTAL SCORE: 930 Bonus ------- None Cogmind --------- Core Integrity 0/250 Matter 126/300 Energy 265/265 System Corruption 2% Temperature Critical (534) Movement Walking (120) Location -10/Mines Parts ------- > --- POWER (1) -------- Improved Ion Engine > --- PROPULSION (2) --- Improved Aluminum Leg Improved Aluminum Leg > --- UTILITY (2) ------ Medium Storage Unit Targeting Computer > --- WEAPON (2) ------- Particle Cannon Light Cannon > --- INVENTORY (10) --- Ion Engine Wheel Heat Sink Sensor Array Improved Terrain Scanner Beam Rifle Particle Cannon Particle Cannon Peak State ------------ > --- POWER ------------ Improved Ion Engine > --- PROPULSION ------- Improved Aluminum Leg Improved Aluminum Leg > --- UTILITY ---------- Medium Storage Unit Targeting Computer > --- WEAPON ----------- Beam Rifle Light Cannon > --- INVENTORY -------- Ion Engine Improved Aluminum Leg Wheel Heat Sink Sensor Array Improved Terrain Scanner EM Pulse Gun Particle Cannon Particle Cannon Particle Cannon [Rating: 12] Favorites ----------- Power Ion Engine Engine Ion Engine Propulsion Improved Aluminum Leg Treads Light Treads Leg Improved Aluminum Leg Utility Targeting Computer Storage Medium Storage Unit Processor Targeting Computer Weapon Assault Rifle Energy Gun Beam Rifle Energy Cannon Particle Cannon Ballistic Gun Assault Rifle Ballistic Cannon Light Cannon Build | -11 -10 -10 ------- Run | Yrd Mat Min Slots Evolved . | . . . Power . | . . . Propulsion . | . . . Utility . | . . . Weapon . | . . . Parts Attached 24 | 3 15 6 Power 5 | . 4 1 Engine 5 | . 4 1 Core . | . . . Reactor . | . . . Propulsion 9 | 2 5 2 Treads 2 | 2 . . Leg 7 | . 5 2 Wheel . | . . . Hover . | . . . Flight . | . . . Utility 4 | . 4 . Device . | . . . Storage 3 | . 3 . Processor 1 | . 1 . Hackware . | . . . Protection . | . . . Artifact . | . . . Weapon 6 | 1 2 3 Energy Gun 2 | . . 2 Energy Cannon 2 | . 1 1 Ballistic Gun 1 | 1 . . Ballistic Cannon 1 | . 1 . Launcher . | . . . Special Weapon . | . . . Impact Weapon . | . . . Slashing Weapon . | . . . Piercing Weapon . | . . . Special Melee Weapon . | . . . Unidentified Prototypes . | . . . Parts Lost 2 | . . 2 Power . | . . . Propulsion 1 | . . 1 Utility . | . . . Weapon 1 | . . 1 Highest Loss Streak 2 | . . 2 To Critical Strikes . | . . . Average Slot Usage (%) 96 | . 95 98 Engine 13 | . 13 14 Treads 3 | . 4 . Leg 24 | . 23 27 Storage 14 | . 14 14 Processor 11 | . 10 14 Energy Gun 2 | . . 7 Energy Cannon 5 | . 7 1 Ballistic Gun 12 | . 16 4 Ballistic Cannon 6 | . 3 14 Naked Turns . | . . . Heaviest Build 24 | 11 21 24 Greatest Support 40 | 40 40 26 Greatest Overweight (x) . | . . . Average Overweight (x) . | . . . Largest Inventory Capacity 15 | 8 15 10 Average Capacity 9 | 8 9 10 Most Carried 10 | 6 10 10 Average Carried 8 | 5 7 9 Final Capacity 10 | 8 10 10 Final Carried 10 | 4 10 8 Class Distribution -------------------- 100% | Mutant Dominant Class ---------------- Mutant | -10/Materials Mutant | -10/Mines Resources | -11 -10 -10 ----------- Run | Yrd Mat Min Matter Collected 665 | 165 349 151 Remotely . | . . . Salvage Created 639 | . 452 187 Parts 44 | . 33 11 Haulers Intercepted 1 | . 1 . Recyclers Shooed . | . . . Parts Field Recycled . | . . . Retrieved Matter . | . . . Parts Self-Destructed . | . . . Prevented . | . . . Kills | -11 -10 -10 ------- Run | Yrd Mat Min Combat Hostiles Destroyed 24 | . 11 13 Guns 12 | . 6 6 Cannons 12 | . 5 7 Classes Destroyed 8 | . 6 2 Tunneler 1 | . 1 . Hauler 1 | . 1 . Recycler 1 | . 1 . Watcher 2 | . 2 . Swarmer 12 | . 6 6 Grunt 5 | . 5 . Sentry 1 | . . 1 Assembled 6 | . . 6 Best Kill Streak 6 | . 4 6 Combat Bots Only 6 | . 4 6 Max Kills in Single Turn 1 | . 1 1 Gunslinging . | . . . Exploded . | . . . Melee . | . . . Uniques/NPCs Destroyed . | . . . Combat | -11 -10 -10 -------- Run | Yrd Mat Min Hostile Shots Fired 130 | . 44 86 Missed 42 | . 16 26 Damage Taken 1023 | . 296 727 Core 260 | . 36 224 Absorbed by Shields . | . . . Regen/Repaired (Parts) 11 | . 11 . Core Remaining (%) 100 | 100 . . Volleys Fired 68 | . 38 30 Largest 2 | . 2 2 Hottest 103 | . 88 103 Shots Fired 138 | . 77 61 Gun 58 | . 39 19 Cannon 80 | . 38 42 Launcher . | . . . Special . | . . . Kinetic 88 | . 46 42 Thermal 44 | . 31 13 Explosive . | . . . Electromagnetic 6 | . . 6 Robot Hit Streak 12 | . 11 12 Robot Miss Streak 4 | . 4 4 Penetration Max . | . . . Secondary Targets . | . . . Shots Hit Robots 74 | . 46 28 Core Hits 35 | . 20 15 Critical Kills 1 | . . 1 Critical Parts Destroyed 1 | . 1 . Critical Strikes 2 | . 1 1 Destroy 2 | . 1 1 Melee Attacks . | . . . Impact . | . . . Slashing . | . . . Piercing . | . . . Sneak Attacks . | . . . Combat Hostiles . | . . . Follow-up Attacks . | . . . Damage Inflicted 1351 | . 829 522 Guns 447 | . 302 145 Cannons 900 | . 523 377 Explosions . | . . . Melee . | . . . Ramming 4 | . 4 . Kinetic 741 | . 399 342 Thermal 584 | . 426 158 Explosive . | . . . Electromagnetic 22 | . . 22 Impact . | . . . Slashing . | . . . Piercing . | . . . Highest Corruption 2 | . 2 2 Average Corruption 1 | . 1 2 Corruption Purged . | . . . Corruption Blocked . | . . . Effects 14 | . 9 5 Message Errors 3 | . 2 1 Matter Fused 1 | . 1 . Heat Flow Errors 2 | . 2 . Energy Discharges 3 | . 1 2 Parts Fused 1 | . 1 . Data Loss (minor) 2 | . 1 1 Misfires 2 | . 1 1 Overload Shots . | . . . Overflow Damage 2 | . 1 1 Projectiles 2 | . 1 1 Explosions . | . . . Melee . | . . . Knockbacks 8 | . 2 6 Impact . | . . . Kinetic 7 | . 2 5 Secondary 1 | . . 1 Self-Inflicted Damage . | . . . Shots . | . . . Rammed . | . . . Targets Rammed 2 | . 1 1 Kicked 2 | . 1 1 Crushed . | . . . Highest Temperature 534 | . 350 534 Average Temperature 150 | . 106 240 Received Heat Transfer 364 | . 135 229 Effects 10 | . 3 7 Shutdowns 3 | . 1 2 Energy Bleed 1 | . 1 . Matter Decay 3 | . . 3 Damage (minor) 1 | . 1 . Damage (core) 2 | . . 2 Siege Activations . | . . . Robots Corrupted . | . . . Combat Hostiles . | . . . Parts Fried . | . . . Impact Corruptions . | . . . Robots Melted . | . . . Combat Hostiles . | . . . Parts Melted . | . . . Heat Transferred 1036 | . 740 296 Parts Sabotaged . | . . . Parts Stolen . | . . . Parts Stripped . | . . . Power Chain Reactions . | . . . Alert | -11 -10 -10 ------- Run | Yrd Mat Min Peak Influence 275 | . 275 252 Initial 77 | . . 77 Average 138 | . 118 186 Maximum Alert Level 1 | . 1 1 Low Security (%) 67 | 100 78 43 Level 1 32 | . 21 56 Level 2 . | . . . Level 3 . | . . . Level 4 . | . . . Level 5 . | . . . High Security . | . . . Max Security . | . . . Squads Dispatched 2 | . 2 . Investigation 2 | . 2 . Extermination . | . . . Reinforcement . | . . . Assault . | . . . Garrison . | . . . Intercept . | . . . Searches Triggered . | . . . Construction Impeded . | . . . Haulers Reinforced . | . . . Active Scanning Responses . | . . . Cargo Convoy Interrupts . | . . . Stealth | -11 -10 -10 --------- Run | Yrd Mat Min Distress Signals . | . . . Communications Jammed . | . . . Distress Signals . | . . . Times Spotted 31 | . 17 14 Peak Tracking Total 5 | . 4 5 Tactical Retreats . | . . . Traps | -11 -10 -10 ------- Run | Yrd Mat Min Traps Triggered 3 | . 3 . Indirectly . | . . . Trap Hack Attempts . | . . . Triggered . | . . . Disarmed . | . . . Reprogrammed . | . . . Reused . | . . . Traps Extracted . | . . . Installed . | . . . Triggered . | . . . Machines | -11 -10 -10 ---------- Run | Yrd Mat Min Machines Disabled 2 | . 1 1 Max in Single Turn 1 | . 1 1 Machines Repaired . | . . . Machines Dismantled . | . . . Machines Sabotaged . | . . . Overloaded Fab Kills . | . . . Hacking | -11 -10 -10 --------- Run | Yrd Mat Min Machines Accessed 7 | . 7 . Terminals 6 | . 6 . Fabricators . | . . . Repair Stations 1 | . 1 . Recycling Units . | . . . Scanalyzers . | . . . Garrison Access . | . . . Total Hacks 24 | . 24 . Successful 12 | . 12 . Failed 12 | . 12 . Catastrophic 1 | . 1 . Database Lockouts . | . . . Manual 18 | . 18 . Terminals 22 | . 22 . Fabricators . | . . . Repair Stations 2 | . 2 . Recycling Units . | . . . Scanalyzers . | . . . Garrison Access . | . . . Terminal Hacks 10 | . 10 . Record 1 | . 1 . Robot Analysis 4 | . 4 . Branch Access Points 1 | . 1 . Emergency Access Points 1 | . 1 . Terminal Index 1 | . 1 . Locate Traps 1 | . 1 . Patrol Status 1 | . 1 . Fabricator Hacks . | . . . Repair Station Hacks 2 | . 2 . Scan Component 1 | . 1 . Repair 1 | . 1 . Recycling Unit Hacks . | . . . Scanalyzer . | . . . Garrison Access Hacks . | . . . Unauthorized Hacks . | . . . Terminals . | . . . Fabricators . | . . . Repair Stations . | . . . Recycling Units . | . . . Scanalyzers . | . . . Garrison Access . | . . . Data Cores Recovered . | . . . Used . | . . . Hacking Detections 7 | . 7 . Full Trace Events 2 | . 2 . Feedback Events 1 | . 1 . Corruption 1 | . 1 . Feedback Blocked . | . . . Robot Schematics Acquired . | . . . Robots Built . | . . . Authchips . | . . . Time . | . . . Total Robot Build Rating . | . . . Part Schematics Acquired . | . . . Parts Built . | . . . Authchips . | . . . Time . | . . . Total Part Build Rating . | . . . Parts Repaired 1 | . 1 . Time 32 | . 32 . Parts Recycled . | . . . Recycled Matter . | . . . Retrieved Matter . | . . . Retrieved Components . | . . . Parts Scanalyzed . | . . . Part Schematics Acquired . | . . . Parts Damaged . | . . . Bothacking | -11 -10 -10 ------------ Run | Yrd Mat Min Used RIF Installer . | . . . Robots Hacked . | . . . Non-combat . | . . . Combat . | . . . Robot Hacks Applied . | . . . Relay Couplers Released . | . . . Fabnet Peak Effective % . | . . . Robots Rewired . | . . . Allies Hacked . | . . . Hacks Repelled . | . . . Allies | -11 -10 -10 -------- Run | Yrd Mat Min Total Allies . | . . . Largest Group . | . . . Highest-Rated Group . | . . . Highest-Rated Ally . | . . . Total Orders . | . . . Ally Attacks . | . . . Total Damage . | . . . Kills . | . . . Allies Corrupted . | . . . Allies Melted . | . . . Intel | -11 -10 -10 ------- Run | Yrd Mat Min Robot Analysis Total 4 | . 4 . Derelict Logs Recovered . | . . . Drone Launches . | . . . Drone Recoveries . | . . . Exploration | -11 -10 -10 ------------- Run | Yrd Mat Min Turns Passed 1580 | 8 1091 481 Spaces Moved 959 | 2 660 297 Core . | . . . Treads 101 | 2 99 . Legs 858 | . 561 297 Wheels . | . . . Hover . | . . . Flight . | . . . Fastest Speed 120 | 160 120 120 Average Speed 124 | 160 126 120 Slowest Speed 160 | 160 160 120 Overloaded Moves . | . . . Propulsion Burnouts . | . . . Robots Hopped . | . . . Cave-ins Triggered . | . . . Exploration Rate (%) 45 | 1 78 57 Regions Visited 2 Branch Regions 1 Pre-discovered Areas . | . . . Known Exits Taken 1 | . 1 . Unknown Exits Taken 1 | 1 . . Scrap Searched 2 | . . 2 Spaces Dug . | . . . Terrain Destroyed . | . . . Melee . | . . . Projectile . | . . . AOE . | . . . Terrain Rammed . | . . . Walls Destroyed . | . . . Machines Disabled . | . . . Actions | -11 -10 -10 --------- Run | Yrd Mat Min Total 1210 | 6 843 361 Wait 128 | . 104 24 Move 957 | 1 659 297 Hop . | . . . Pick Up 15 | . 14 1 Fast Attach 6 | . 5 1 Attach 5 | . 3 2 Detach . | . . . Swap 13 | 3 7 3 Drop 16 | 2 12 2 Fire 68 | . 38 30 Melee . | . . . Ram . | . . . Kick 2 | . 1 1 Crush . | . . . Escape Stasis . | . . . Rewire . | . . . Trap . | . . . Miscellaneous . | . . . Route ------- -11/Scrapyard -10/Materials (discovered 4 exits: [*Mat x3] / *Min) -10/Mines (discovered 2 exits: [*Mat x2]) History --------- Turn | Location | Event 4 | -11/Scrapyard | Discovered new exit (range 1) 9 | -11/Scrapyard | Entered Materials 158 | -10/Materials | Identified exit to Mines 311 | -10/Materials | Build established: Mutant 358 | -10/Materials | Discovered new exit (range 12) 540 | -10/Materials | Discovered new exit (range 13) 832 | -10/Materials | Discovered new exit (range 16) 876 | -10/Materials | Repaired Imp. Aluminum Leg 1100 | -10/Materials | Entered Mines 1265 | -10/Mines | Joined a pair of Derelicts in attacking an 0b10 outpost 1350 | -10/Mines | Discovered new exit (range 6) 1373 | -10/Mines | Discovered new exit (range 6) 1449 | -10/Mines | Assembled infested the area 1533 | -10/Mines | Core integrity fell below 50% 1568 | -10/Mines | Core integrity fell below 20% 1582 | -10/Mines | Core destroyed Last Messages --------------- 01527_ Laser Drill disabled. 01530_ EM Pulse Gun destroyed. 01531_ as-30462 destroyed. 01534_ as-01730 knocked back. 01537_ as-01730 destroyed. 01540_ as-28520 destroyed. 01546_ as-36671 destroyed. 01547_ System corrupted: Component data lost. 01549_ as-13466 destroyed. 01551_ Power failure, Imp. Ion Engine shutdown. 01551_ Overheating: Core damaged (-25). 01557_ Overheating: Matter decay (-28). 01558_ Power failure, Imp. Ion Engine shutdown. 01559_ Acquired 7 matter. 01562_ Acquired 17 matter. 01573_ as-80400 knocked back. 01579_ Destroyed Asb. Hover Unit. 01580_ Overheating: Matter decay (-49). 01581_ Overheating: Matter decay (-31). 01582_ Overheating: Core damaged (-45). Map ----- +----------------------------------------------------+ | ## #?????????????????????? | | ## ##????????????????????? | | # ## ##???????????????????? | | # ## #???????????????????? | | #???????????????????? | | #### ##???????????????????? | | ???## ####????????????????????? | | ????## ####???????????????????????? | | ##??## ##??????????????????????????? | | #### ##?????????????????????###???? | | ## ####?????????#####???????# #???? | | ##???????????## ######## #???? | | ##??########### ## #???? | | ##???# #????? | | ###### """ #?????? | | ###### """ ##?????? | | #????# " " ##??????? | | ### ######????## #???????? | | ##?# #?????????## ##???????? | | #### #????????## ###### ##????????? | | % #???????## ##????####?????????? | | % ######???????# ##?????????????????? | | ###???????????## %%#######???????????? | | ??????????????# % #???????????? | | ??????????????# % #???????????? | | ??????????????## ####@!#???????????? | | ???????????????# ##??#%%#???????????? | | ???????????????## ##???#!!#???????????? | | ????????????????####??###%=#???????????? | | ?????????????????????## %a*#???????????? | | ????????????????????## ![##???????????? | | ????????????????????# =##????????????? | | ????????????????????# ##?????????????? | | ???????????????????## ##??????????????? | | ???????????????????# ##???????????????? | | ????##????????????##=*#### #???????????? | | ????# ?????##### * #???????????? | | ????# #### *#####???????????? | | ? #??????????????? | | ??????## #### #?????????????? | | ?????????????## ## #?????????????? | | ??????????????###### ##?????????????? | | ???????????????????# #??????????????? | | ???????????????????## ##??????????????? | | ????????????????????####???????????????? | | ???????????????????????????????????????? | | ???????????????????????????????????????? | | | | | | | +----------------------------------------------------+ Best States ------------- Heat Dissipation 25 Energy Generation 12 Energy Capacity 265 Matter Stores 300 Matter Capacity 300 Sight Range 16 Terrain Scan Density 10 Evasion (%) 55 Targeting Accuracy 5 Recoil Reduction 2 Item Schematics ----------------- None Robot Schematics ------------------ None Fabricated ------------ Nothing Alien Tech Used ----------------- None Achievements -------------- None Challenges ------------ None Game ------ Seed WeaponsMappingShield Manual? 0 Play Time 00:25:29 Cumulative 17.2 hours Start 2024.04.22 @ 11:41:17 End 2024.04.22 @ 12:13:53 Sessions 1 Manual Loads 0 Difficulty Rogue Special Mode None Game No. 41 Rogue 41 Adventurer 0 Explorer 0 Win Type - Total 0 Types 0/0/0/0/0/0/0/0/0 Lore% 17 Gallery% 27 Achievement% 21 Wizard Run 0 Options --------- Layout 1 ASCII 0 Keyboard 0 Movement Numpad Keybinds 0 Fullscreen 0 Font 42/SmallcapsGlow Map View 50x35 Zoom Use 0% Tactical HUD 1 Map Filters NONE Filters NONE Steam 1 RUN: 6ad244fe-da13-4181-93ac-ab66bccc5f5e